bitfinex-derivatives/quotes_BTCF0:USTF0_20241025
["timestamp","ask_amount","ask_price","bid_price","bid_amount"]
[1729878055367,0.075204,67405.0,67404.0,0.006]
[1729878055765,0.074204,67405.0,67404.0,1.5]
[1729878056880,0.074215,67395.0,67394.0,0.14237764]
[1729878057179,0.3608,67400.0,67394.0,0.14237764]
[1729878057380,0.074215,67396.0,67395.0,1.5]
[1729878059378,0.074215,67396.0,67395.0,1.54410298]
[1729878060469,0.074215,67396.0,67395.0,1.5]
[1729878061173,0.074215,67395.0,67394.0,0.06670686]
[1729878061374,0.074215,67395.0,67394.0,0.02257708]
[1729878061563,0.72304,67400.0,67392.0,0.04412978]
[1729878061763,0.435017,67393.0,67392.0,1.54415494]
[1729878062172,0.435017,67393.0,67392.0,0.04415494]
[1729878062371,0.3608,67393.0,67391.0,0.05891586]
[1729878062575,0.3608,67393.0,67387.0,0.1241]
[1729878062576,0.14237764,67392.0,67389.0,0.05891586]
[1729878062873,0.43502,67390.0,67388.0,0.04419041]
[1729878063180,0.074225,67386.0,67385.0,0.04419041]
[1729878063380,0.074225,67386.0,67385.0,0.2012935]
[1729878063865,0.074226,67385.0,67384.0,0.00222609]
[1729878064473,0.074226,67385.0,67384.0,0.17042487]
[1729878064672,0.074226,67385.0,67384.0,0.00222609]
[1729878066671,0.074226,67385.0,67384.0,1.50222609]
[1729878067572,0.3608,67390.0,67384.0,1.50222609]
[1729878067882,0.43502,67390.0,67389.0,0.04423821]
[1729878069585,0.074224,67387.0,67386.0,0.05898429]
[1729878070581,0.3608,67390.0,67385.0,0.05898429]
[1729878070782,0.43502,67390.0,67389.0,0.04423957]
[1729878070986,0.43502,67390.0,67388.0,0.14237764]
[1729878071176,0.43502,67390.0,67389.0,0.0589861]
[1729878071475,0.074222,67389.0,67388.0,0.074222]
[1729878071982,0.074224,67387.0,67386.0,0.07355706]
[1729878072193,0.074224,67387.0,67386.0,0.1669122]
[1729878072491,0.3608,67390.0,67386.0,0.16698074]
[1729878072778,0.074219,67391.0,67389.0,0.14237764]
[1729878072980,0.074213,67397.0,67396.0,0.074213]
[1729878073281,0.074213,67397.0,67394.0,0.07373241]
[1729878073482,0.074213,67397.0,67395.0,0.16687932]
[1729878073689,0.074214,67396.0,67395.0,0.07373241]
[1729878074183,0.074214,67396.0,67395.0,0.1669553]
[1729878074380,0.074218,67392.0,67391.0,0.07378284]
[1729878074589,0.14237764,67392.0,67389.0,0.07378397]
[1729878075083,0.14237764,67392.0,67388.0,0.07378397]
[1729878075084,0.074222,67389.0,67388.0,0.07378397]
[1729878075284,0.074222,67389.0,67388.0,0.09362441]
[1729878075486,0.074222,67389.0,67388.0,0.16743807]
[1729878075682,0.435022,67389.0,67388.0,0.16743807]
[1729878075886,0.435022,67389.0,67387.0,0.07381366]
[1729878075887,0.074223,67388.0,67387.0,0.07381366]
[1729878076088,0.074223,67388.0,67387.0,0.09364666]
[1729878077088,0.14237764,67392.0,67387.0,0.09364666]
[1729878077387,0.074222,67389.0,67388.0,0.09364666]
[1729878078086,0.435022,67389.0,67388.0,0.09364666]
[1729878078284,0.435022,67389.0,67388.0,0.09330787]
[1729878079379,0.435022,67389.0,67388.0,0.18211206]
[1729878079578,0.435022,67389.0,67388.0,0.09330787]
[1729878080283,0.435022,67389.0,67388.0,0.18206667]
[1729878080689,0.435022,67389.0,67388.0,0.09330787]
[1729878081082,0.435022,67389.0,67388.0,0.18210306]
[1729878081387,0.435022,67389.0,67388.0,0.09330787]
[1729878081588,0.3608,67402.0,67388.0,0.87133118]
[1729878081785,0.074211,67399.0,67398.0,0.08881864]
[1729878081986,0.074211,67399.0,67398.0,0.09330787]
[1729878082189,0.074211,67399.0,67398.0,1.59330787]
[1729878082386,0.074211,67399.0,67398.0,1.70433132]
[1729878082585,0.074211,67399.0,67398.0,1.5]
[1729878082780,0.074211,67399.0,67398.0,0.20416251]
[1729878083494,0.074211,67399.0,67398.0,1.70416251]
[1729878083883,0.57738864,67399.0,67398.0,1.59314146]
[1729878084282,0.57738864,67399.0,67398.0,0.09314146]
[1729878086895,0.57738864,67399.0,67398.0,0.16724595]
[1729878087091,0.60065801,67399.0,67398.0,0.07410774]
[1729878087389,0.074212,67398.0,67397.0,0.07410774]
[1729878087698,0.27598964,67398.0,67397.0,0.16733818]
[1729878088083,0.27598964,67398.0,67397.0,0.09323044]
[1729878090390,0.27598964,67398.0,67397.0,0.0932608]
[1729878091503,0.20177764,67398.0,67395.0,0.08886465]
[1729878091693,0.074214,67396.0,67395.0,0.08886465]
[1729878091887,0.074214,67396.0,67395.0,0.09133791]
[1729878092297,0.21659164,67396.0,67395.0,0.09133791]
[1729878093101,0.35896928,67396.0,67395.0,0.09133791]
[1729878093303,0.80408928,67396.0,67390.0,0.08886465]
[1729878093597,0.435019,67391.0,67384.0,1.50222604]
[1729878093803,0.50317764,67385.0,67384.0,1.50222604]
[1729878093993,0.50317764,67385.0,67384.0,0.10948877]
[1729878094196,0.57740364,67385.0,67384.0,0.10948877]
[1729878095293,0.57740364,67385.0,67384.0,0.00222604]
[1729878095693,0.074228,67383.0,67382.0,1.5235506]
[1729878095894,0.074228,67383.0,67382.0,1.63045286]
[1729878096096,0.074228,67383.0,67382.0,0.1076842]
[1729878096298,0.07423,67381.0,67379.0,0.08897983]
[1729878096496,0.21660864,67380.0,67379.0,0.08897983]
[1729878097196,0.074233,67379.0,67378.0,0.08897983]
[1729878097497,0.074236,67376.0,67375.0,0.02282924]
[1729878097804,0.074234,67379.0,67375.0,0.14237764]
[1729878098103,0.074234,67379.0,67378.0,0.21661064]
[1729878098293,0.074234,67379.0,67378.0,0.30556621]
[1729878098697,0.074234,67379.0,67378.0,0.16318857]
[1729878099001,0.074234,67379.0,67378.0,0.074233]
[1729878099186,0.074234,67379.0,67378.0,0.16317001]
[1729878099388,0.074234,67379.0,67378.0,0.16317013]
[1729878099596,0.074234,67379.0,67378.0,0.074233]
[1729878101093,0.074234,67379.0,67378.0,0.0973645]
[1729878101897,0.435029,67382.0,67381.0,0.07423]
[1729878102089,0.435029,67382.0,67381.0,0.16315392]
[1729878102907,0.435029,67382.0,67381.0,0.08892392]
[1729878103094,0.3608,67382.0,67381.0,0.1053531]
[1729878103301,0.435029,67382.0,67381.0,0.1053531]
[1729878103707,0.435029,67382.0,67381.0,0.1675531]
[1729878104004,0.074229,67382.0,67381.0,0.1675531]
[1729878106196,0.3608,67384.0,67383.0,0.074228]
[1729878106404,0.435027,67384.0,67383.0,0.1795811]
[1729878107601,0.3608,67397.0,67383.0,0.69267302]
[1729878107805,0.3608,67397.0,67396.0,0.074214]
[1729878108200,0.3608,67397.0,67396.0,0.16315495]
[1729878108400,0.3608,67397.0,67396.0,1.74974312]
[1729878109102,0.435013,67397.0,67396.0,1.66080217]
[1729878109305,0.3608,67397.0,67396.0,1.66080217]
[1729878110505,0.074212,67398.0,67396.0,1.66080217]
[1729878110803,0.074212,67398.0,67397.0,0.22896581]
[1729878111000,0.074212,67398.0,67397.0,0.29526581]
[1729878111308,0.074212,67398.0,67397.0,0.08658817]
[1729878111498,0.074212,67398.0,67397.0,1.58658817]
[1729878111699,0.074212,67398.0,67397.0,1.72896581]
[1729878111897,0.074212,67398.0,67397.0,1.64237764]
[1729878112806,0.3608,67401.0,67400.0,0.074209]
[1729878113306,0.3608,67409.0,67400.0,0.7554059]
[1729878113513,0.3608,67417.0,67408.0,0.14237764]
[1729878113514,0.074194,67414.0,67408.0,0.14237764]
[1729878113805,0.074196,67412.0,67410.0,0.074198]
[1729878114001,0.074196,67412.0,67410.0,0.16023305]
[1729878114203,0.074196,67412.0,67410.0,0.074198]
[1729878114706,0.074196,67412.0,67410.0,0.519238]
[1729878115500,0.3608,67417.0,67410.0,0.519238]
[1729878115705,0.074194,67415.0,67410.0,0.519238]
[1729878116001,0.3608,67417.0,67410.0,0.81070524]
[1729878116202,0.434991,67417.0,67415.0,0.074193]
[1729878116396,0.434991,67417.0,67416.0,0.074192]
[1729878117008,0.434991,67417.0,67416.0,0.13333594]
[1729878117316,0.434991,67417.0,67416.0,0.074192]
[1729878117710,0.074191,67417.0,67416.0,0.074192]
[1729878118016,0.38388557,67428.0,67416.0,0.074192]
[1729878118017,0.074187,67421.0,67416.0,0.66602092]
[1729878118312,0.074187,67421.0,67420.0,0.26087377]
[1729878118904,0.074187,67421.0,67420.0,0.21656464]
[1729878119108,0.074187,67421.0,67420.0,0.26082329]
[1729878119403,0.3608,67428.0,67420.0,0.18663629]
[1729878119608,0.3608,67428.0,67427.0,0.14237764]
[1729878119609,0.434979,67428.0,67427.0,0.14237764]
[1729878120815,0.434979,67428.0,67422.0,0.04425579]
[1729878120816,0.074184,67423.0,67422.0,0.04425579]
[1729878121014,0.07419,67418.0,67417.0,0.05914394]
[1729878121209,0.3608,67418.0,67413.0,0.04425667]
[1729878121515,0.14237764,67414.0,67409.0,0.04425667]
[1729878121711,0.14237764,67414.0,67406.0,0.06136909]
[1729878121712,0.0742,67409.0,67408.0,0.04425667]
[1729878122110,0.074201,67408.0,67406.0,0.00222515]
[1729878123023,0.074202,67407.0,67406.0,0.00222515]
[1729878123216,0.074202,67407.0,67406.0,0.14460279]
[1729878124307,0.074202,67407.0,67406.0,0.18885842]
[1729878124519,0.074202,67407.0,67406.0,0.14460279]
[1729878125313,0.074202,67407.0,67406.0,0.00222515]
[1729878125504,0.86397764,67410.0,67403.0,0.14237764]
[1729878125505,0.074205,67404.0,67403.0,0.14237764]
[1729878125709,0.435005,67404.0,67403.0,0.14237764]
[1729878127917,0.3608,67404.0,67403.0,0.21658364]
[1729878128419,0.3608,67404.0,67400.0,0.0652]
[1729878128420,0.94825764,67404.0,67400.0,6.7e-07]
[1729878128610,0.074212,67398.0,67395.0,0.04429351]
[1729878128913,0.074227,67384.0,67383.0,0.14237764]
[1729878129115,0.074227,67384.0,67383.0,1.64237764]
[1729878129315,0.074227,67384.0,67383.0,1.71660564]
[1729878130114,0.3608,67385.0,67384.0,0.074227]
[1729878130309,0.074223,67389.0,67388.0,0.074223]
[1729878130508,0.483,67397.0,67388.0,0.14237764]
[1729878130709,0.3608,67397.0,67396.0,0.074214]
[1729878131815,0.074211,67399.0,67398.0,0.074212]
[1729878132515,0.3608,67403.0,67397.0,0.14237764]
[1729878132725,0.3608,67403.0,67402.0,0.14237764]
[1729878133722,0.3608,67403.0,67402.0,0.21658464]
[1729878133923,0.3608,67403.0,67402.0,0.37565589]
[1729878134217,0.074203,67406.0,67405.0,0.074204]
[1729878134421,0.3608,67411.0,67410.0,0.074198]
[1729878134621,0.434997,67411.0,67410.0,0.21657564]
[1729878135318,0.434997,67411.0,67410.0,0.14237764]
[1729878135523,0.3608,67411.0,67410.0,0.14237764]
[1729878135717,0.3608,67411.0,67410.0,0.21657564]
[1729878136021,0.434997,67411.0,67410.0,0.21657564]
[1729878136321,0.434997,67411.0,67410.0,0.14237764]
[1729878137420,0.0742,67409.0,67408.0,0.07389244]
[1729878137628,0.074201,67408.0,67407.0,0.21627008]
[1729878137823,0.074201,67408.0,67407.0,0.14237764]
[1729878138826,0.074201,67408.0,67407.0,0.21627008]
[1729878139326,0.074201,67408.0,67407.0,0.22781754]
[1729878139516,0.074201,67408.0,67407.0,0.0854399]
[1729878139826,0.074201,67408.0,67407.0,0.1594099]
[1729878140216,0.074201,67408.0,67407.0,0.15941317]
[1729878140420,0.074201,67408.0,67407.0,0.07397349]
[1729878140614,0.127,67410.0,67405.0,0.07397349]
[1729878140827,0.074204,67405.0,67404.0,0.21635113]
[1729878141026,0.074204,67405.0,67404.0,0.30168559]
[1729878141027,0.435004,67405.0,67404.0,0.30168559]
[1729878141231,0.435004,67405.0,67404.0,0.15930795]
[1729878141421,0.3608,67405.0,67403.0,0.07397349]
[1729878141623,0.3608,67405.0,67400.0,0.14237764]
[1729878141828,0.074205,67404.0,67403.0,0.07398005]
[1729878142138,0.074205,67404.0,67403.0,0.08536801]
[1729878142525,0.28058264,67404.0,67403.0,0.1593512]
[1729878142748,0.28058264,67404.0,67401.0,0.07398319]
[1729878143029,0.074213,67397.0,67396.0,0.00076]
[1729878143227,0.435013,67397.0,67396.0,0.08566434]
[1729878143428,0.074218,67392.0,67391.0,0.44974095]
[1729878143734,0.074218,67392.0,67391.0,0.44651176]
[1729878144032,0.074218,67392.0,67391.0,0.08571176]
[1729878144434,0.074218,67392.0,67391.0,0.15993076]
[1729878144826,0.074215,67396.0,67395.0,0.074214]
[1729878145022,0.074215,67396.0,67395.0,0.21659164]
[1729878145224,0.36224,67405.0,67397.0,0.074213]
[1729878145424,0.435004,67405.0,67404.0,0.14237764]
[1729878145935,0.435004,67405.0,67404.0,0.21658264]
[1729878146320,0.00222619,67406.0,67404.0,0.22708084]
[1729878146523,0.00222619,67406.0,67405.0,0.1589072]
[1729878146730,0.00222619,67406.0,67405.0,0.15891652]
[1729878147227,0.07642919,67406.0,67405.0,0.15896451]
[1729878147625,0.07642919,67406.0,67405.0,0.15898244]
[1729878147827,0.07642919,67406.0,67405.0,0.074204]
[1729878148024,0.07642919,67406.0,67404.0,0.01658164]
[1729878148527,0.07642919,67406.0,67405.0,0.15810465]
[1729878148725,0.07642919,67406.0,67401.0,0.16314895]
[1729878148928,0.074206,67403.0,67402.0,0.08394718]
[1729878149230,0.074206,67403.0,67402.0,0.17288813]
[1729878149432,0.21658364,67403.0,67402.0,0.08394718]
[1729878149727,0.074214,67396.0,67395.0,1.50076]
[1729878149929,0.074214,67396.0,67395.0,1.5]
[1729878152132,0.074219,67391.0,67390.0,0.0651]
[1729878152533,0.3608,67397.0,67394.0,0.074215]
[1729878152534,0.074217,67395.0,67394.0,0.074215]
[1729878152835,0.074217,67395.0,67394.0,0.21659264]
[1729878158132,0.3608,67397.0,67394.0,0.21659264]
[1729878158133,0.3608,67397.0,67394.0,0.14237764]
[1729878158341,0.3608,67397.0,67396.0,0.074214]
[1729878158833,0.3608,67397.0,67396.0,0.24616347]
[1729878159137,0.435013,67397.0,67396.0,0.24616347]
[1729878159732,0.435013,67397.0,67396.0,0.17194947]
[1729878160034,0.57739064,67397.0,67396.0,0.17194947]
[1729878160341,0.57739064,67397.0,67396.0,0.08885448]
[1729878160539,0.074222,67389.0,67388.0,0.10366356]
[1729878160744,0.435022,67389.0,67388.0,0.10366356]
[1729878163943,0.074227,67386.0,67385.0,0.074226]
[1729878164447,0.074227,67384.0,67383.0,1.64321764]
[1729878164745,0.074227,67384.0,67383.0,1.5]
[1729878166155,0.21660464,67384.0,67383.0,1.5]
[1729878166334,0.074228,67383.0,67382.0,0.00222543]
[1729878166934,0.074228,67383.0,67382.0,1.50222543]
[1729878168851,0.074228,67383.0,67382.0,1.57645443]
[1729878169248,0.074228,67383.0,67382.0,1.50222543]
[1729878176461,0.435027,67384.0,67383.0,0.074228]
[1729878176656,0.3608,67384.0,67383.0,0.074228]
[1729878176863,0.074226,67385.0,67384.0,0.074226]
[1729878178547,0.074226,67385.0,67384.0,0.14821774]
[1729878178752,0.074226,67385.0,67384.0,0.074226]
[1729878178953,0.3608,67389.0,67383.0,0.07399174]
[1729878179153,0.074228,67383.0,67382.0,1.50298543]
[1729878179365,0.57740564,67383.0,67382.0,1.58552729]
[1729878179657,0.57740564,67383.0,67382.0,0.00222543]
[1729878180052,0.435028,67383.0,67382.0,1.57630793]
[1729878180453,0.435028,67383.0,67382.0,1.50222543]
[1729878180850,0.435028,67383.0,67382.0,1.5]
[1729878181355,0.57740564,67383.0,67382.0,1.5]
[1729878181750,1.02260564,67383.0,67375.0,0.0740825]
[1729878181953,0.64555528,67376.0,67373.0,0.00651169]
[1729878182153,0.074262,67352.0,67351.0,0.00028]
[1729878182452,0.435062,67352.0,67351.0,0.00028]
[1729878182653,0.435062,67352.0,67351.0,0.08332256]
[1729878182855,0.435062,67352.0,67351.0,0.00028]
[1729878183258,0.57743964,67352.0,67351.0,0.00028]
[1729878184060,0.435062,67352.0,67351.0,0.00028]
[1729878184966,0.3608,67352.0,67351.0,0.074543]
[1729878185355,0.07426,67354.0,67353.0,0.074261]
[1729878185868,0.3608,67358.0,67352.0,0.25757764]
[1729878186072,0.074258,67356.0,67355.0,0.074258]
[1729878186372,0.074261,67353.0,67352.0,0.1152]
[1729878188266,0.074262,67352.0,67351.0,0.00028]
[1729878188461,0.57743964,67352.0,67351.0,0.00028]
[1729878189063,0.435062,67352.0,67351.0,0.00028]
[1729878192465,0.43520885,67352.0,67351.0,0.00028]
[1729878192762,0.435062,67352.0,67351.0,0.00028]
[1729878194371,0.3608,67352.0,67351.0,0.074543]
[1729878194770,0.3608,67352.0,67351.0,0.134443]
[1729878195167,0.435062,67352.0,67351.0,0.06018]
[1729878195870,0.43523688,67352.0,67351.0,0.06018]
[1729878196080,0.435062,67352.0,67351.0,0.06018]
[1729878196277,0.57743964,67352.0,67351.0,0.06018]
[1729878198369,0.57743964,67352.0,67351.0,0.00028]
[1729878199771,0.57756992,67352.0,67351.0,0.00028]
[1729878200077,0.57743964,67352.0,67351.0,0.00028]
[1729878200778,0.435062,67352.0,67351.0,0.00028]
[1729878200979,0.880502,67352.0,67351.0,0.00028]
[1729878201178,0.880502,67352.0,67340.0,0.0584]
[1729878201179,0.074274,67341.0,67340.0,0.0584]
[1729878201475,0.074276,67340.0,67336.0,0.0575]
[1729878201673,0.14237764,67337.0,67336.0,0.0575]
[1729878202072,0.21665664,67337.0,67336.0,0.0575]
[1729878202271,0.21665664,67337.0,67329.0,0.1156]
[1729878202272,0.074287,67330.0,67329.0,0.1156]
[1729878202578,0.435087,67330.0,67329.0,0.1156]
[1729878202977,0.3608,67330.0,67320.0,0.05911028]
[1729878203172,0.14237764,67321.0,67316.0,0.1207]
[1729878203378,0.50317764,67317.0,67316.0,0.1207]
[1729878203572,0.3608,67317.0,67316.0,0.1207]
[1729878203875,0.36224,67323.0,67319.0,0.074298]
[1729878204067,0.36224,67323.0,67322.0,0.14237764]
[1729878204068,0.2687,67323.0,67322.0,0.14237764]
[1729878204270,0.14237764,67333.0,67322.0,0.14237764]
[1729878204471,0.14237764,67329.0,67323.0,0.074294]
[1729878204677,0.14237764,67329.0,67324.0,0.074293]
[1729878204884,0.14237764,67329.0,67319.0,0.14237764]
[1729878205076,0.14237764,67321.0,67318.0,0.3608]
[1729878205669,0.14237764,67325.0,67318.0,0.3608]
[1729878206370,0.14237764,67329.0,67321.0,0.074296]
[1729878206683,0.14237764,67329.0,67322.0,0.074295]
[1729878207181,0.21666564,67329.0,67322.0,0.074295]
[1729878207584,0.38411865,67336.0,67326.0,0.3608]
[1729878207585,0.21665964,67334.0,67326.0,0.3608]
[1729878207878,0.21665964,67334.0,67325.0,0.074292]
[1729878208084,0.21666464,67330.0,67325.0,0.074292]
[1729878208580,0.074289,67329.0,67321.0,0.14237764]
[1729878208778,0.074289,67328.0,67321.0,0.074296]
[1729878208967,0.38411865,67336.0,67319.0,0.05911028]
[1729878208968,0.14237764,67326.0,67319.0,0.05911028]
[1729878209176,0.074292,67325.0,67320.0,0.05911028]
[1729878209477,0.074294,67323.0,67319.0,0.35718848]
[1729878209875,0.074294,67323.0,67319.0,0.13340828]
[1729878210076,0.074294,67323.0,67319.0,0.05911028]
[1729878210377,0.074297,67321.0,67318.0,0.41991028]
[1729878210782,0.074298,67320.0,67318.0,0.41991028]
[1729878211082,0.074298,67320.0,67316.0,0.1399401]
[1729878211083,0.21667664,67319.0,67316.0,0.17683142]
[1729878211273,0.21667664,67319.0,67316.0,0.1177]
[1729878211274,0.0743,67318.0,67316.0,0.1177]
[1729878216382,0.074301,67317.0,67316.0,0.1177]
[1729878218783,0.14237764,67319.0,67316.0,0.1177]
[1729878218993,0.14237764,67327.0,67318.0,0.14237764]
[1729878219179,0.14237764,67327.0,67319.0,0.074299]
[1729878219381,0.21667064,67324.0,67319.0,0.074299]
[1729878219982,0.074295,67323.0,67319.0,0.074299]
[1729878220287,0.074295,67322.0,67319.0,0.074299]
[1729878220483,0.14237764,67320.0,67319.0,0.074299]
[1729878220683,0.14237764,67320.0,67316.0,0.1177]
[1729878220884,0.074299,67319.0,67316.0,0.1177]
[1729878221282,0.14237764,67317.0,67316.0,0.1177]
[1729878221987,0.21667864,67317.0,67316.0,0.1177]
[1729878223091,0.21667864,67317.0,67316.0,0.0601]
[1729878225791,0.074301,67317.0,67316.0,0.0601]
[1729878227089,0.21667864,67317.0,67316.0,0.0601]
[1729878227490,0.3608,67321.0,67316.0,0.0601]
[1729878228901,0.3608,67330.0,67318.0,0.14237764]
[1729878229190,0.074285,67332.0,67328.0,0.05925296]
[1729878229391,0.074285,67332.0,67331.0,0.05925296]
[1729878229695,0.3608,67346.0,67334.0,0.074282]
[1729878229880,0.3608,67346.0,67336.0,0.3608]
[1729878230089,0.074279,67337.0,67336.0,0.42007044]
[1729878230287,0.074279,67337.0,67336.0,0.3608]
[1729878230790,0.074275,67341.0,67336.0,0.43508]
[1729878230983,0.074277,67340.0,67339.0,0.05928998]
[1729878231681,0.074277,67340.0,67333.0,0.0579]
[1729878231682,0.074278,67338.0,67337.0,0.05928998]
[1729878231886,0.074278,67338.0,67333.0,0.0579]
[1729878232203,0.07428,67336.0,67333.0,0.08390107]
[1729878232395,0.074282,67335.0,67333.0,0.08390107]
[1729878232697,0.50317764,67334.0,67329.0,0.05929083]
[1729878232998,0.50317764,67334.0,67329.0,0.05929042]
[1729878232999,0.55917764,67334.0,67329.0,0.05929042]
[1729878233289,0.074287,67330.0,67329.0,0.05929042]
[1729878233693,0.21666464,67330.0,67329.0,0.05929042]
[1729878234400,0.074287,67330.0,67327.0,0.074289]
[1729878235795,0.36224,67334.0,67329.0,0.14237764]
[1729878235990,0.3608,67334.0,67333.0,0.13356762]
[1729878236187,0.3608,67334.0,67333.0,0.074283]
[1729878236397,0.074281,67336.0,67334.0,0.074282]
[1729878236599,0.074281,67336.0,67335.0,0.074281]
[1729878236789,0.074275,67341.0,67335.0,0.0597]
[1729878237094,0.074276,67340.0,67339.0,0.05927634]
[1729878237687,0.074276,67340.0,67338.0,0.074278]
[1729878237889,0.074277,67339.0,67338.0,0.074278]
[1729878238396,0.074283,67340.0,67336.0,0.3608]
[1729878239191,0.074283,67340.0,67336.0,0.50905209]
[1729878239393,0.074283,67340.0,67336.0,0.435087]
[1729878239597,0.074283,67340.0,67338.0,0.05923838]
[1729878239895,0.57746164,67339.0,67338.0,0.05923838]
[1729878240090,0.57746164,67339.0,67335.0,0.05923838]
[1729878240287,0.074289,67335.0,67333.0,0.05923838]
[1729878240490,0.14237764,67334.0,67331.0,0.05923838]
[1729878240691,0.074294,67330.0,67329.0,0.05923838]
[1729878240887,0.435094,67330.0,67329.0,0.05923838]
[1729878241288,0.3608,67330.0,67327.0,0.05923838]
[1729878241488,0.3608,67330.0,67324.0,0.05924821]
[1729878241489,0.14237764,67328.0,67324.0,0.05924821]
[1729878241687,0.074301,67324.0,67323.0,0.05924821]
[1729878241891,0.074303,67323.0,67321.0,0.05924821]
[1729878242794,0.074303,67323.0,67320.0,0.06147635]
[1729878243184,0.074303,67323.0,67321.0,0.05924821]
[1729878243383,0.074303,67323.0,67320.0,0.06077635]
[1729878243793,0.14237764,67323.0,67320.0,0.00152814]
[1729878244097,0.074304,67321.0,67320.0,0.00152814]
[1729878244294,0.074304,67321.0,67317.0,0.05925503]
[1729878244295,0.435104,67321.0,67317.0,0.05925503]
[1729878244497,0.074308,67317.0,67316.0,0.05925503]
[1729878244792,0.07431,67316.0,67314.0,0.05925503]
[1729878244991,0.3608,67315.0,67313.0,0.05925503]
[1729878245197,0.074312,67314.0,67313.0,0.05925503]
[1729878245500,0.074315,67312.0,67311.0,0.074315]
[1729878245795,0.074312,67314.0,67307.0,0.14237764]
[1729878245988,0.074312,67314.0,67306.0,0.09979787]
[1729878245989,0.3608,67315.0,67314.0,0.074312]
[1729878246493,0.3608,67321.0,67320.0,0.074305]
[1729878246896,0.43509,67334.0,67331.0,0.074292]
[1729878247100,0.43509,67334.0,67333.0,0.074291]
[1729878247304,0.3608,67334.0,67333.0,0.074291]
[1729878247892,0.3608,67334.0,67333.0,0.21666864]
[1729878248095,0.3608,67334.0,67333.0,0.074291]
[1729878248590,0.57746764,67334.0,67332.0,0.074291]
[1729878248796,0.21666764,67334.0,67333.0,0.05922961]
[1729878249097,0.28475528,67334.0,67333.0,0.05923175]
[1729878249401,0.26277764,67334.0,67327.0,0.05923175]
[1729878249594,0.50317764,67328.0,67327.0,0.05923175]
[1729878249907,0.074298,67326.0,67325.0,0.05923175]
[1729878250295,0.50461764,67328.0,67320.0,0.21641719]
[1729878250499,0.0743,67325.0,67324.0,0.0743]
[1729878251707,0.50461764,67328.0,67320.0,0.21641719]
[1729878252004,0.074297,67327.0,67326.0,0.05924874]
[1729878252205,0.50461764,67328.0,67325.0,0.05925307]
[1729878252409,0.50317764,67328.0,67325.0,0.05925307]
[1729878252904,0.074297,67327.0,67326.0,0.05925307]
[1729878253295,0.50473765,67328.0,67325.0,0.05925307]
[1729878253496,0.074298,67326.0,67325.0,0.05925307]
[1729878254009,0.074303,67322.0,67321.0,0.074304]
[1729878254797,0.14237764,67322.0,67321.0,0.07403955]
[1729878254999,0.21668064,67322.0,67321.0,0.074304]
[1729878255204,0.074303,67322.0,67321.0,0.074304]
[1729878256998,0.074305,67320.0,67319.0,0.00222823]
[1729878257200,0.074305,67320.0,67319.0,0.07653423]
[1729878257808,0.074301,67324.0,67319.0,0.00222823]
[1729878258004,0.074301,67324.0,67323.0,0.074302]
[1729878260112,0.074298,67327.0,67326.0,0.074297]
[1729878260305,0.3608,67328.0,67327.0,0.074297]
[1729878260903,0.435096,67328.0,67327.0,0.074297]
[1729878261105,0.074297,67327.0,67326.0,0.1201]
[1729878261315,0.074309,67316.0,67312.0,0.04444751]
[1729878261518,0.074312,67314.0,67313.0,0.193613]
[1729878263711,0.14237764,67319.0,67313.0,0.1193]
[1729878263910,0.07431,67316.0,67315.0,0.074308]
[1729878264112,0.43511,67316.0,67315.0,0.074308]
[1729878264304,0.07431,67316.0,67315.0,0.074308]
[1729878264509,0.43511,67316.0,67315.0,0.074308]
[1729878265213,0.3608,67316.0,67315.0,0.074308]
[1729878266114,0.3608,67316.0,67313.0,0.1193]
[1729878266115,0.074312,67314.0,67313.0,0.1193]
[1729878266312,0.074312,67314.0,67313.0,0.193613]
[1729878270715,0.3608,67323.0,67313.0,1.01453364]
[1729878270918,0.3608,67323.0,67322.0,0.29085437]
[1729878271117,0.3608,67323.0,67322.0,0.30027331]
[1729878271316,0.3608,67323.0,67322.0,0.52346795]
[1729878271819,0.50317764,67323.0,67322.0,0.15750698]
[1729878272017,0.3608,67323.0,67322.0,0.15750698]
[1729878272616,0.3608,67323.0,67322.0,0.23167409]
[1729878272916,0.3608,67323.0,67322.0,0.15750698]
[1729878273115,0.3608,67323.0,67322.0,0.18415948]
[1729878273713,0.3608,67323.0,67322.0,0.1009555]
[1729878274824,0.435102,67323.0,67322.0,0.18452687]
[1729878276423,0.00222889,67328.0,67322.0,0.32690451]
[1729878276618,0.00222889,67328.0,67327.0,0.14847192]
[1729878276925,0.00222889,67328.0,67327.0,0.15778577]
[1729878278023,0.07652489,67328.0,67327.0,0.15778577]
[1729878278429,0.07652489,67328.0,67327.0,0.074297]
[1729878279125,0.00222889,67328.0,67327.0,0.074297]
[1729878279831,0.00222889,67328.0,67323.0,0.07418028]
[1729878280018,0.3608,67325.0,67322.0,0.0266525]
[1729878280322,0.3608,67325.0,67319.0,0.07418028]
[1729878280323,0.074305,67320.0,67319.0,0.07418028]
[1729878280524,0.074305,67320.0,67319.0,0.23238396]
[1729878281022,0.14237764,67323.0,67317.0,0.1007731]
[1729878281228,0.074307,67318.0,67317.0,0.02659282]
[1729878281422,0.074307,67318.0,67316.0,0.14848928]
[1729878281617,0.074307,67318.0,67316.0,0.074309]
[1729878281826,0.074308,67317.0,67316.0,0.10029612]
[1729878282417,0.074314,67312.0,67311.0,0.07418028]
[1729878282619,0.074315,67311.0,67310.0,0.1258]
[1729878282926,0.074315,67311.0,67310.0,0.02636107]
[1729878283124,0.074316,67310.0,67308.0,0.05935934]
[1729878283429,0.074323,67304.0,67302.0,0.14850428]
[1729878283624,0.14237764,67305.0,67301.0,0.07418028]
[1729878283927,0.074325,67302.0,67301.0,0.074326]
[1729878284330,0.074322,67305.0,67303.0,0.074323]
[1729878284922,0.074323,67304.0,67303.0,0.074323]
[1729878285627,0.074323,67304.0,67303.0,0.15866023]
[1729878285833,0.3608,67307.0,67306.0,0.074321]
[1729878286021,0.43512,67307.0,67306.0,0.074321]
[1729878291025,0.074322,67305.0,67303.0,0.0741512]
[1729878291230,0.3608,67307.0,67306.0,0.074321]
[1729878291828,0.14237764,67315.0,67306.0,0.14237764]